fUSD/lending_fUSD_20250321
["ID","MTS","AMOUNT","RATE_DAILY","PERIOD"]
[356495681,1742544639500,-702.47844533,0.0001,2]
[356495682,1742544639542,-3594.43905136,0.0001,2]
[356495683,1742544639652,-2004.69357214,0.0001,2]
[356495684,1742544639664,-558.93122625,0.0001,2]
[356495685,1742544639676,-969.93441918,0.0001,2]
[356495686,1742544639705,-3483.42142401,0.0001,2]
[356495687,1742544639717,-3249.95340702,0.0001,2]
[356495688,1742544639729,-10906.81012829,0.0001,2]
[356495689,1742544639740,-1399.79399091,0.0001,2]
[356495690,1742544639865,-1456.72563829,0.0001,2]
[356495691,1742544639920,-1431.37412263,0.0001,2]
[356495692,1742544639932,-2256.50655973,0.0001,2]
[356495696,1742544642664,-284.74638608,0.0001,2]
[356495698,1742544642676,-1635.41090626,0.0001,2]
[356495699,1742544643369,-282.22400001,0.0001,2]
[356495700,1742544643381,-386.4901369,0.0001,2]
[356495701,1742544643391,-392.53922624,0.0001,2]
[356495702,1742544643406,-624.711,0.0001,2]
[356495703,1742544643417,-447.27153168,0.0001,2]
[356495704,1742544643429,-39963.71437645,0.0001,2]
[356495705,1742544643440,-4767.74423512,0.0001,2]
[356495706,1742544643451,-835.04991627,0.0001,2]
[356495707,1742544643462,-783.81303863,0.0001,2]
[356495708,1742544643473,-512.6900035,0.0001,2]
[356495709,1742544643484,-562.94029799,0.0001,2]
[356495710,1742544643495,-1086.48280957,0.0001,2]
[356495711,1742544643506,-2305.68935329,0.0001,2]
[356495712,1742544645443,-432.19494406,9.9e-05,2]
[356495713,1742544645455,-343.53915486,9.9e-05,2]
[356495714,1742544645466,-224.26590108,9.9e-05,2]
[356495715,1742544645476,-110.45821092,0.0001,2]
[356495716,1742544645498,-668.30843146,0.0001,2]
[356495717,1742544645699,-845.19446001,0.0001,2]
[356495718,1742544645711,-658.63300375,0.0001,2]
[356495719,1742544991705,231.05,9.642e-05,2]
[356495720,1742545004128,604.05,9.401e-05,2]
[356495721,1742545175595,3421.072945,9.768e-05,2]
[356495722,1742545301482,3258.78,9.416e-05,2]
[356495723,1742545332691,23900.0,9.417e-05,2]
[356495724,1742545380847,1393.67,8.219e-05,2]
[356495725,1742545386382,5274.39,9.454e-05,2]
[356495726,1742545438135,5854.58,9.481e-05,2]
[356495727,1742545457492,1000.0,9.482e-05,2]
[356495730,1742545561725,5239.66925512,8e-05,2]
[356495732,1742545595991,1550.81,9.462e-05,2]
[356495733,1742545636673,205.0,9.8e-05,2]
[356495734,1742545643160,2000.0,9.448e-05,2]
[356495735,1742545689007,534.33538304,9e-05,2]
[356495739,1742545736899,-150.0,9.818e-05,2]
[356495740,1742545736929,-150.0,9.82e-05,2]
[356495741,1742545736958,-350.0,9.822e-05,2]
[356495742,1742545736987,-2000.0,9.836e-05,2]
[356495743,1742545737016,-200.0,9.847e-05,2]
[356495744,1742545737045,-212.85,9.849e-05,2]
[356495747,1742545737294,-2301.66325965,9.873e-05,2]
[356495748,1742545737326,-646.46674035,9.873e-05,2]
[356495749,1742545737355,-301.02,9.874e-05,2]
[356495750,1742545737383,-150.0,9.899e-05,2]
[356495751,1742545737413,-300.0,9.899e-05,2]
[356495752,1742545737442,-409.92165589,9.9e-05,2]
[356495755,1742545761948,-590.07834411,9.9e-05,2]
[356495756,1742545761976,-4917.87334866,9.9e-05,2]
[356495757,1742545762022,-2413.62704557,9.9e-05,2]
[356495758,1742545763386,-575.47344725,9.9e-05,2]
[356495759,1742545786509,-5666.38326754,9.9e-05,2]
[356495760,1742545786562,-3487.76706314,9.9e-05,2]
[356495765,1742545834954,-150.0,9.899e-05,2]
[356495766,1742545834964,-354.75,9.9e-05,2]
[356495793,1742545837493,-437.70943335,9.9e-05,2]
[356495794,1742545837603,-376.0213201,9.9e-05,2]
[356495795,1742545837615,-2497.59716968,9.9e-05,2]
[356495796,1742545837627,-2006.67286024,9.9e-05,2]
[356495797,1742545837658,-6341.06870671,9.9e-05,2]
[356495798,1742545837670,-352.14529009,9.9e-05,2]
[356495802,1742545839717,-5194.33004767,9.9e-05,2]
[356495803,1742545839727,-1647.5131,9.9e-05,2]
[356495804,1742545839736,-4086.06222193,9.9e-05,2]
[356495807,1742545842623,-344.94220916,9.9e-05,2]
[356495828,1742545843530,-439.6789258,9.9e-05,2]
[356495829,1742545845532,-585.70187622,9.9e-05,2]
[356495830,1742545845588,-1193.58966689,9.9e-05,2]
[356495831,1742545845600,-1000.0,9.9e-05,2]
[356495832,1742545845610,-267.8236,9.9e-05,2]
[356495833,1742545845621,-2500.0,9.9e-05,2]
[356495834,1742545845631,-400.7164,9.9e-05,2]
[356495835,1742545845641,-1000.0,9.9e-05,2]
[356495836,1742545845651,-350.0,9.917e-05,2]
[356495837,1742545845661,-609.82882778,9.934e-05,2]
[356495859,1742546209938,-150.0,9.899e-05,2]
[356495860,1742546209961,-151.06,9.9e-05,2]
[356495861,1742546209984,-1000.0,9.9e-05,2]
[356495862,1742546210009,-6649.9749,9.9e-05,2]
[356495863,1742546210031,-1000.0,9.9e-05,2]
[356495864,1742546210053,-2500.0,9.9e-05,2]
[356495865,1742546210075,-350.0,9.95e-05,2]
[356495866,1742546210098,-151.0,9.999e-05,2]
[356495867,1742546210122,-6245.7965589,9.999e-05,2]
[356495868,1742546210147,-500.0,9.999e-05,2]
[356495869,1742546210178,-413.38906643,9.999e-05,2]
[356495870,1742546210205,-571.72937744,9.999e-05,2]
[356495871,1742546210228,-198162.50253904,0.0001,2]
[356495872,1742546210251,-4798.41227387,0.0001,2]
[356495873,1742546210274,-86585.20385363,0.0001,2]
[356495874,1742546414082,1387.62,8.219e-05,2]
[356495877,1742546740859,-213.185076,9.824e-05,2]
[356495878,1742546740881,-150.0,9.863e-05,2]
[356495879,1742546740904,-350.0,9.874e-05,2]
[356495880,1742546740926,-678.74172896,9.89e-05,2]
[356495881,1742546740951,-350.0,9.895e-05,2]
[356495882,1742546740974,-300.0,9.899e-05,2]
[356495883,1742546740996,-150.0,9.899e-05,2]
[356495884,1742546741021,-146080.895,9.9e-05,2]
[356495885,1742546741044,-1000.0,9.9e-05,2]
[356495886,1742546750222,-153.86,9.906e-05,2]
[356495887,1742546750246,-182.31,9.906e-05,2]
[356495888,1742546750268,-959.9967,9.91e-05,2]
[356495889,1742546750290,-2500.0,9.91e-05,2]
[356495890,1742546750312,-1000.0,9.922e-05,2]
[356495891,1742546750335,-23900.0,9.973e-05,2]
[356495892,1742546750358,-153.86,9.985e-05,2]
[356495893,1742546750380,-164.96,9.985e-05,2]
[356495894,1742546750401,-11048.8964099,9.996e-05,2]
[356495895,1742546750423,-2412.3606604,9.996e-05,2]
[356495896,1742546750444,-151.0,9.999e-05,2]
[356495897,1742546750468,-10334.01485,0.0001,2]
[356495898,1742546750489,-200.0,0.0001,2]
[356495899,1742546750517,-1143.94821,0.0001,2]
[356495900,1742546761168,-151.0,9.999e-05,2]
[356495901,1742546761189,-2000.0,0.0001001,2]
[356495902,1742546761209,-250.0,0.00010018,2]
[356495903,1742546761230,-153.86,0.00010064,2]
[356495904,1742546761251,-200.0,0.00010088,2]
[356495905,1742546761271,-200.0,0.000101,2]
[356495906,1742546761295,-1493.45,0.00010139,2]
[356495907,1742546761316,-162.76,0.00010142,2]
[356495908,1742546761339,-153.86,0.00010143,2]
[356495909,1742546761360,-2347.21,0.00010152,2]
[356495910,1742546761381,-180.56,0.0001018,2]
[356495911,1742546761402,-200.0,0.00010201,2]
[356495912,1742546761424,-153.86,0.00010223,2]
[356495913,1742546761445,-153.86,0.00010302,2]
[356495914,1742546761465,-200.0,0.00010303,2]
[356495915,1742546761486,-168.15,0.00010338,2]
[356495916,1742546761506,-250.70802109,0.00010352,2]
[356495917,1742546761532,-429.65727299,0.0001039,2]
[356495918,1742546761556,-171.57,0.00010399,2]
[356495919,1742546761576,-500.0,0.00010438,2]
[356495920,1742546761597,-429.65727299,0.00010446,2]
[356495921,1742546761618,-1387.62,0.00010474,2]
[356495922,1742546761641,-1550.81,0.00010645,2]
[356495923,1742546761660,-210.0,0.00010712,2]
[356495924,1742546761682,-350.0,0.00010834,2]
[356495925,1742546761703,-150.0,0.00010834,2]
[356495926,1742546761723,-176.63,0.00010877,2]
[356495927,1742546761744,-150.0,0.00010889,2]
[356495928,1742546761767,-255.0,0.00010889,2]
[356495929,1742546761790,-150.0,0.0001089,2]
[356495930,1742546761810,-429.65727299,0.00010914,2]
[356495931,1742546761831,-200.0,0.00010959,2]
[356495932,1742546761853,-200.0,0.00010959,2]
[356495933,1742546761873,-150.0,0.00010959,2]
[356495934,1742546761893,-350.0,0.00010999,2]
[356495935,1742546761924,340.12015994,0.00010005,2]
[356495936,1742546911163,-150.0,0.00015,20]
[356495940,1742546966137,-9.87984006,0.00010005,2]
[356495941,1742546966158,-150.0,0.00010005,2]
[356495942,1742546966178,-256.70132872,0.0001002,2]
[356495943,1742547024696,-93.29867128,0.0001002,2]
[356495944,1742547024719,-150.0,0.00010036,2]
[356495945,1742547024741,-173.75,0.0001009,2]
[356495946,1742547024763,-2108.6932282,0.00010997,2]
[356495947,1742547024786,-214.83741635,0.00010998,2]
[356495948,1742547024809,-150.0,0.00010999,2]
[356495954,1742547032084,-350.0,0.00011005,2]
[356495955,1742547032093,-350.0,0.00011022,2]
[356495956,1742547032103,-150.0,0.00011022,2]
[356495957,1742547032112,-9658.0637467,0.00011041,2]
[356495958,1742547032122,-491.1673213,0.00011049,2]
[356495959,1742547032132,-182.31,0.00011144,2]
[356495960,1742547032142,-1000.0,0.00011162,2]
[356495961,1742547032151,-429.65727299,0.00011258,2]
[356495962,1742547032160,-457.4691,0.00011479,2]
[356495963,1742547032170,-2751.0,0.00011507,2]
[356495964,1742547032179,-1253.73,0.00011643,2]
[356495965,1742547032188,-12917.20495316,0.000117,2]
[356495966,1742547032197,-3138.1935,0.000118,2]
[356495967,1742547032207,-1550.81,0.00011827,2]
[356495968,1742547032216,-349.9269963,0.000119,2]
[356495969,1742547032226,-3802.33788809,0.000119,2]
[356495970,1742547032236,-1000.0,0.000119,2]
[356495971,1742547032245,-1000.0,0.000119,2]
[356495972,1742547032255,-2500.0,0.000119,2]
[356495973,1742547032264,-150.84222033,0.00011973,2]
[356495974,1742547032274,-150.0,0.00011999,2]
[356495975,1742547032285,-890.0,0.00012,2]
[356495976,1742547032294,-253714.76813509,0.00012,2]
[356495979,1742547037996,-702.0,0.00012,2]
[356495980,1742547038018,-301.01788846,0.00012,2]
[356496024,1742547040103,-2537.26229283,0.00012,2]
[356496048,1742547045805,-6690.85599567,0.00012,2]
[356496049,1742547045911,-181326.10332769,0.00012,2]
[356496050,1742547046348,-40303.74448046,0.00012,2]
[356496051,1742547053133,-17109.42068417,0.00012,2]
[356496053,1742547112452,-429.657273,0.00011266,2]
[356496054,1742547112474,-368.375491,0.0001164,2]
[356496055,1742547112495,-896.6895,0.000119,2]
[356496056,1742547112516,-305.277736,0.000119,2]
[356496057,1742547305756,-164.53,0.00024712,30]
[356496062,1742548135749,-7001672.80561383,0.0003152,30]
[356496063,1742548135776,-167.0,0.0003152,30]
[356496064,1742548135801,-1264.63215129,0.0003152,120]
[356496065,1742548135827,-1996895.56223488,0.0003152,120]
[356496066,1742548139393,-4856196.86726024,0.0003152,120]
[356496082,1742548232041,-434.47129682,0.00011561,2]
[356496083,1742548232051,-276.2816182,0.0001164,2]
[356496084,1742548232060,-273.878,0.0001164,2]
[356496085,1742548232069,-166.66666666,0.0001166,2]
[356496086,1742548232079,-48.24261766,0.0001176,2]
[356496087,1742548232221,-689.80218239,0.0001176,2]
[356496088,1742548232233,-953.02719995,0.0001176,2]
[356496089,1742548232242,-179.207,0.0001176,2]
[356496090,1742548232252,-166.66666666,0.000118,2]
[356496091,1742548232261,-100.90024718,0.00011899,2]
[356496092,1742548232273,-49.09975282,0.00011899,2]
[356496093,1742548232283,-5443.35976273,0.000119,2]
[356496159,1742548237995,-1358.61740743,0.000119,2]
[356496384,1742548243054,-2600.29214801,0.000119,2]
[356496385,1742548243064,-3422.10409929,0.000119,2]
[356496386,1742548243074,-2500.0,0.000119,2]
[356496387,1742548243085,-178.04075464,0.000119,2]
[356496388,1742548243094,-200.0,0.00011904,2]
[356496389,1742548243104,-350.0,0.0001195,2]
[356496390,1742548243114,-3493.22018903,0.00012,2]
[356496400,1742548243742,-2801.29996,0.00012,2]
[356496401,1742548243753,-1596.299985,0.00012,2]
[356496402,1742548245864,-28688.25583335,0.00012,2]
[356496404,1742548246231,-4484.69999684,0.00012,2]
[356496408,1742548686898,-500.0,0.00012,6]
[356496410,1742548718326,-453.29018,0.00012,6]
[356496412,1742549105240,-794.40848,0.00012,6]
[356496413,1742549114701,1442.91276014,0.000121,30]
[356496414,1742549116434,-1303.26,0.0001155,2]
[356496415,1742549116460,-305.4845582,0.0001164,2]
[356496416,1742549116484,-172.0,0.000117,2]
[356496417,1742549116510,-434.47129682,0.00011725,2]
[356496418,1742549116536,-2054.2372,0.000118,2]
[356496419,1742549116562,-150.0,0.00011899,2]
[356496420,1742549116589,-93791.19074877,0.000119,2]
[356496421,1742549116613,-1296.2889,0.000119,2]
[356496422,1742549116637,-3002.4425,0.000119,2]
[356496423,1742549116661,-500.0,0.000119,2]
[356496424,1742549116685,-2500.0,0.000119,2]
[356496425,1742549116710,-66113.9464,0.000119,2]
[356496426,1742549116735,-178.04075463,0.000119,2]
[356496427,1742549116760,-200.0,0.00011904,2]
[356496428,1742549116787,-259.78044141,0.00011973,2]
[356496429,1742549116813,-66362.44872017,0.00012,2]
[356496431,1742549201141,-229.1134186,0.0001164,2]
[356496432,1742549201162,-234.44014603,0.000118,2]
[356496449,1742549322619,180.41421539,0.00013699,30]
[356496452,1742549347073,-346.25636878,0.0001,2]
[356496459,1742549432353,-150.0,9.999e-05,2]
[356496460,1742549432363,-303.74996007,0.0001,2]
[356496461,1742549432376,-864.10549473,0.0001,2]
[356496462,1742549432388,-422.72647111,0.0001,2]
[356496531,1742549440353,-892.51501814,0.0001,2]
[356496532,1742549440366,-100.90324484,0.0001,2]
[356496533,1742549440376,-175.89348209,0.0001,2]
[356496548,1742549446206,-1834.16543675,0.0001,2]
[356496549,1742549446217,-198775.36753872,0.0001,2]
[356496550,1742549446228,-6577.29667806,0.0001,2]
[356496551,1742549446378,-5706.34533231,0.0001,2]
[356496555,1742549879428,1267.71,8.812e-05,2]
[356496556,1742550426467,569.389429,9.789e-05,2]
[356496559,1742550563557,150.0,0.00010106,7]
[356496560,1742550565143,-350.0,9.838e-05,2]
[356496561,1742550565165,-60.61907219,9.863e-05,2]
[356496562,1742550608290,-89.38092781,9.863e-05,2]
[356496563,1742550608320,-150.0,9.899e-05,2]
[356496564,1742550608350,-300.0,9.899e-05,2]
[356496565,1742550608380,-2613.3244,9.9e-05,2]
[356496566,1742550608409,-2102.8685831,9.9e-05,2]
[356496567,1742550608447,-978.6573169,9.9e-05,2]
[356496568,1742550608477,-1163.768,9.9e-05,2]
[356496569,1742550608508,-452.98499024,9.9e-05,2]
[356496572,1742550632382,-1158.18130976,9.9e-05,2]
[356496573,1742550632392,-1378.0519,9.9e-05,2]
[356496574,1742550632401,-314.1442,9.9e-05,2]
[356496575,1742550632410,-500.0,9.9e-05,2]
[356496576,1742550632419,-224.81214767,9.9e-05,2]
[356496577,1742550632428,-266.1819,9.9e-05,2]
[356496578,1742550632437,-39169.42567257,0.0001,2]
[356496579,1742550632594,-107165.94216168,0.0001,2]
[356496679,1742550638348,-320.82817341,0.0001,2]
[356496680,1742550638359,-747.0094225,0.0001,2]
[356496681,1742550638371,-11909.19598809,0.0001,2]
[356496682,1742550638382,-9699.07474949,0.0001,2]
[356496683,1742550638393,-16411.82440605,0.0001,2]
[356496684,1742550638405,-1298.45990584,0.0001,2]
[356496745,1742550643314,-3304.85235433,0.0001,2]
[356496758,1742550646351,-43681.86791169,0.0001,2]
[356496759,1742550646361,-161.89,0.00010154,2]
[356496760,1742550646370,-207.72,0.00010175,2]
[356496761,1742550646379,-200.0,0.00010181,2]
[356496762,1742550646389,-1805.19,0.00010181,2]
[356496763,1742550646399,-9929.16,0.0001032,2]
[356496764,1742550646408,-350.0,0.00010324,2]
[356496765,1742550646417,-23900.0,0.00010342,2]
[356496766,1742550646427,-303.87,0.0001036,2]
[356496767,1742550646436,-165.72,0.00010422,2]
[356496768,1742550646445,-720.69,0.00010484,2]
[356496769,1742550646454,-1454.37,0.00010522,2]
[356496770,1742550646463,-318.0,0.00010548,2]
[356496771,1742550646472,-150.0,0.00010795,2]
[356496772,1742550646481,-350.0,0.00010795,2]
[356496773,1742550646491,-150.0,0.00010822,2]
[356496774,1742550646500,-350.0,0.00010835,2]
[356496775,1742550646509,-1000.0,0.00010847,2]
[356496776,1742550646518,-150.0,0.00010849,2]
[356496777,1742550646527,-255.0,0.00010889,2]
[356496778,1742550646536,-420.0,0.00010889,2]
[356496779,1742550646545,-328.46,0.00010904,2]
[356496780,1742550646555,-626.86,0.00010907,2]
[356496781,1742550646564,-2000.0,0.00010908,2]
[356496782,1742550646573,-150.0,0.00010959,2]
[356496783,1742550646582,-200.0,0.00010959,2]
[356496784,1742550646591,-171.76,0.00010984,2]
[356496785,1742550646601,-1267.71,0.00011076,2]
[356496786,1742550646610,-3079.89368937,0.00011099,2]
[356496787,1742550646620,-3079.89368929,0.00011099,2]
[356496788,1742550646631,-3079.89368929,0.00011099,2]
[356496789,1742550646641,-3079.89368929,0.00011099,2]
[356496790,1742550646651,-3079.89368929,0.00011099,2]
[356496791,1742550646662,-3079.89368929,0.00011099,2]
[356496792,1742550646671,-3079.89368929,0.00011294,2]
[356496793,1742550646681,-3079.89368929,0.00011496,2]
[356496794,1742550646691,-2751.0,0.00011507,2]
[356496795,1742550646701,-213.0697016,0.0001164,2]
[356496796,1742550646710,-3079.89368929,0.00011698,2]
[356496797,1742550646719,-299.93712181,0.00011712,2]
[356496798,1742550646728,-434.47129682,0.00011772,2]
[356496799,1742550646738,-720.69,0.00011794,2]
[356496800,1742550646747,-535.78109088,0.000118,2]
[356496801,1742550646756,-317.26868562,0.000118,2]
[356496802,1742550646766,-530.0,0.00011888,2]
[356496803,1742550646775,-32981.83977447,0.000119,2]
[356496804,1742550657521,-151.0,0.000119,2]
[356496805,1742550660832,-151.0,0.000119,2]
[356496806,1742550663290,-150.0,0.00011899,2]
[356496807,1742550671654,-350.0,0.000119,2]
[356496808,1742550674576,-150.0,0.000119,2]
[356496809,1742550706175,-283.74,9.9e-05,2]
[356496810,1742550721958,-150.0,9.9e-05,2]
[356496811,1742550730246,-150.0,9.9e-05,2]
[356496812,1742550872017,900.13381103,0.0003158,120]
[356496816,1742551300977,1224.87,9.075e-05,2]
[356496821,1742551701162,1004.23,0.00031577,30]
[356496827,1742551808218,150.0,0.00010495,7]
[356496829,1742551831513,-500.0,9.9e-05,2]
[356496830,1742551831523,-8.47198714,0.00010845,2]
[356496831,1742551831535,-144.51801286,0.00010845,2]
[356496832,1742551831544,-152.99,0.00010874,2]
[356496833,1742551831554,-350.0,0.0001089,2]
[356496834,1742551831563,-150.0,0.0001089,2]
[356496835,1742551831573,-150.0,0.0001089,2]
[356496836,1742551831584,-150.0,0.0001089,2]
[356496837,1742551831594,-152.99,0.00010903,2]
[356496838,1742551831603,-152.99,0.00010932,2]
[356496839,1742551831613,-1360.83,0.00010952,2]
[356496840,1742551831622,-152.99,0.00010961,2]
[356496841,1742551831632,-152.99,0.0001099,2]
[356496842,1742551831641,-152.99,0.00011019,2]
[356496843,1742551831651,-224.81214768,0.00011044,2]
[356496844,1742551831660,-152.99,0.00011048,2]
[356496845,1742551831669,-152.99,0.00011077,2]
[356496846,1742551831679,-152.99,0.00011106,2]
[356496847,1742551831689,-152.99,0.00011135,2]
[356496848,1742551831699,-1000.0,0.00011143,2]
[356496849,1742551831708,-3139.93983946,0.00011145,2]
[356496850,1742551831720,-15823.685467,0.00011145,2]
[356496857,1742551837395,-1361.32179779,0.00011145,2]
[356496858,1742551837406,-603.7737553,0.00011145,2]
[356496859,1742551837499,-2971.27914045,0.00011145,2]
[356496860,1742551837509,-152.99,0.00011163,2]
[356496861,1742551837518,-152.99,0.00011192,2]
[356496862,1742551837528,-163.58,0.00011213,2]
[356496863,1742551837539,-152.99,0.00011221,2]
[356496864,1742551837549,-150.0,0.00011237,2]
[356496865,1742551837559,-152.99,0.0001125,2]
[356496866,1742551837570,-152.99,0.00011279,2]
[356496867,1742551837579,-429.15960955,0.00011339,2]
[356496868,1742551837590,-256.91980793,0.00011339,2]
[356496939,1742551839697,-538.79058252,0.00011339,2]
[356496940,1742551839707,-434.47129682,0.00011558,2]
[356496941,1742551839716,-182.31,0.00011617,2]
[356496942,1742551839725,-197.3022762,0.0001164,2]
[356496943,1742551839734,-1228.07827854,0.00011731,2]
[356496944,1742551839881,-1522.92172146,0.00011731,2]
[356496945,1742551839890,-224.81214768,0.000118,2]
[356496946,1742551839900,-317.26868558,0.000118,2]
[356496947,1742551839909,-1916.26,0.000118,2]
[356496948,1742551839918,-17157.938,0.000118,2]
[356496949,1742551839929,-307.98936901,0.00011804,2]
[356496950,1742551839939,-307.98936892,0.00011815,2]
[356496951,1742551839949,-307.98936892,0.00011825,2]
[356496952,1742551839958,-307.98936892,0.00011836,2]
[356496953,1742551839968,-307.98936892,0.00011847,2]
[356496954,1742551839977,-307.98936892,0.00011857,2]
[356496955,1742551839987,-307.98936892,0.00011868,2]
[356496956,1742551839997,-307.98936892,0.00011879,2]
[356496957,1742551840006,-307.98936892,0.00011889,2]
[356496958,1742551840015,-1412.55,0.00011899,2]
[356496959,1742551840025,-150.0,0.00011899,2]
[356496960,1742551840035,-41071.3767,0.000119,2]
[356496961,1742551840045,-459.24093504,0.000119,2]
[356496962,1742551840057,-167937.53248987,0.000119,2]
[356496971,1742551842762,-63.63084487,0.000119,2]
[356496982,1742551856441,-151.0,0.00011645,2]
[356496983,1742551860283,-150.0,0.00011645,2]
[356496984,1742552390656,1102.38,9.44e-05,2]
[356496988,1742552776434,501.0,0.00031575,30]
[356496989,1742552797924,1000.23,0.00031575,90]
[356496993,1742552877764,-200.0,0.0001,2]
[356496994,1742552877788,-49.84533941,0.0001,2]
[356497003,1742552942540,-293.28535622,9.999e-05,2]
[356497004,1742552947129,-6.71464378,9.999e-05,2]
[356497005,1742552947152,-447.56784956,0.0001,2]
[356497024,1742553031810,-300.0,9.999e-05,2]
[356497025,1742553031820,-45.76153951,0.0001,2]
[356497026,1742553031831,-52415.37542367,0.0001,2]
[356497027,1742553031840,-3979.82,0.00010619,2]
[356497028,1742553031849,-200.0,0.00010959,2]
[356497029,1742553031858,-150.0,0.00010959,2]
[356497030,1742553031867,-420.0,0.00010999,2]
[356497031,1742553031876,-150.0,0.0001108,7]
[356497032,1742553031886,-163.12,0.0001108,2]
[356497033,1742553031895,-163.12,0.00011129,2]
[356497034,1742553031905,-163.12,0.00011179,2]
[356497035,1742553031914,-163.12,0.00011228,2]
[356497036,1742553031923,-163.12,0.00011277,2]
[356497037,1742553031937,-163.12,0.00011326,2]
[356497038,1742553031947,-163.12,0.00011376,2]
[356497039,1742553031956,-150.0,0.00011392,2]
[356497040,1742553031967,-1141.77,0.00011393,2]
[356497041,1742553031976,-163.12,0.00011425,2]
[356497042,1742553031986,-2000.0,0.0001147,2]
[356497043,1742553031995,-163.12,0.00011474,2]
[356497044,1742553032005,-163.12,0.00011523,2]
[356497045,1742553032015,-185.7267071,0.00011543,2]
[356497046,1742553032024,-583.74,0.0001157,2]
[356497047,1742553032037,-6544.7911,0.000116,2]
[356497048,1742553032048,-1235.0,0.000117,2]
[356497050,1742553032058,-1102.38,0.00011704,2]
[356497052,1742553032067,-434.47129682,0.0001172,2]
[356497053,1742553032076,-750.58588,0.0001178,6]
[356497054,1742553032085,-500.0,0.000118,2]
[356497055,1742553032094,-35759.4256,0.000118,2]
[356497056,1742553032104,-26612.0464,0.000118,2]
[356497057,1742553032113,-1000.0,0.000118,2]
[356497058,1742553032122,-859.3293,0.000118,2]
[356497059,1742553032131,-4480.7624,0.000118,2]
[356497060,1742553032141,-153.99468446,0.000118,2]
[356497061,1742553032150,-178.94819274,0.000118,2]
[356497063,1742553032159,-316.63274198,0.000118,2]
[356497065,1742553032169,-23900.0,0.000118,2]
[356497067,1742553032179,-181.04474945,0.00011825,2]
[356497069,1742553032187,-1415.399,0.00011825,2]
[356497071,1742553032197,-247.91,0.00011871,2]
[356497072,1742553032206,-2751.0,0.00011871,2]
[356497073,1742553032215,-1000.0,0.00011873,2]
[356497074,1742553032224,-432.41,0.00011895,2]
[356497075,1742553032233,-372.2184,0.000119,2]
[356497076,1742553032242,-153.99468446,0.000119,2]
[356497077,1742553032251,-76330.44017298,0.000119,2]
[356497078,1742553032263,-31976.45836917,0.000119,2]
[356497079,1742553032274,-16715.68548842,0.000119,2]
[356497080,1742553032285,-17259.14400613,0.000119,2]
[356497081,1742553032296,-2401.11058956,0.000119,2]
[356497082,1742553032312,-652.73075561,0.000119,2]
[356497083,1742553032327,-2016.30819884,0.000119,2]
[356497089,1742553037596,-363.90638154,0.000119,2]
[356497090,1742553037607,-731.99342017,0.000119,2]
[356497091,1742553037650,-363.69237551,0.000119,2]
[356497092,1742553037662,-6200.0,0.000119,2]
[356497093,1742553037706,-260.58,0.000119,2]
[356497094,1742553037717,-293.30188239,0.000119,2]
[356497095,1742553037729,-334.15196045,0.000119,2]
[356497096,1742553037762,-15379.92447289,0.000119,2]
[356497107,1742553039715,-904.37452845,0.000119,2]
[356497108,1742553039978,-293.46199433,0.000119,2]
[356497138,1742553043578,-185.7267072,0.00011543,2]
[356497139,1742553043587,-425.30954235,0.000119,2]
[356497149,1742553347389,-2000.0,0.0001102,2]
[356497150,1742553347411,-2751.0,0.00011507,2]
[356497151,1742553347435,-150.1417082,0.00011543,2]
[356497152,1742553362551,-150.0,0.00011672,2]
[356497153,1742553362580,-182.31,0.00011771,2]
[356497154,1742553362603,-300.0,0.00011799,2]
[356497155,1742553362625,-1000.0,0.000118,2]
[356497156,1742553362649,-500.0,0.000118,2]